bitfinex/quotes_BTCUSD_20230109
["timestamp","ask_amount","ask_price","bid_price","bid_amount"]
[1673279826469,4.24858012,17309.0,17307.0,0.00088592]
[1673279826707,1.98915151,17308.0,17307.0,0.00088592]
[1673279826948,3.42826333,17308.0,17307.0,0.00088592]
[1673279827712,3.60103658,17308.0,17307.0,0.00088592]
[1673279827968,3.62375904,17308.0,17307.0,0.00088592]
[1673279828274,3.66371689,17308.0,17307.0,0.00088592]
[1673279828531,1.0101,17307.0,17306.0,0.00102166]
[1673279828841,2.62874945,17307.0,17306.0,6.6e-07]
[1673279829112,3.95681153,17307.0,17305.0,0.0063541]
[1673279829376,1.244232,17306.0,17305.0,0.0063541]
[1673279829636,2.97218659,17306.0,17305.0,0.0063541]
[1673279830159,3.57534694,17306.0,17305.0,0.0063541]
[1673279830418,3.80224946,17306.0,17305.0,0.0063541]
[1673279830673,4.51608346,17306.0,17305.0,0.0063541]
[1673279830920,4.25766553,17306.0,17305.0,0.0063541]
[1673279831173,4.51608346,17306.0,17305.0,0.0063541]
[1673279831441,3.95766553,17306.0,17305.0,0.0063541]
[1673279831944,4.21608346,17306.0,17305.0,0.0063541]
[1673279832229,0.4,17305.0,17304.0,0.00740694]
[1673279832478,0.4,17305.0,17303.0,6.85680479]
[1673279832479,3.07837789,17305.0,17303.0,6.85680479]
[1673279832765,0.68741702,17304.0,17303.0,6.85680479]
[1673279833049,2.25171902,17304.0,17303.0,6.85680479]
[1673279833304,2.079334,17304.0,17303.0,6.85680479]
[1673279833558,2.50419201,17304.0,17303.0,6.85680479]
[1673279833812,2.079334,17304.0,17303.0,6.85680479]
[1673279834063,1.864302,17304.0,17303.0,6.85680479]
[1673279834317,2.226292,17304.0,17303.0,6.85680479]
[1673279834566,2.362292,17304.0,17303.0,6.85680479]
[1673279834840,2.8433631,17304.0,17303.0,6.85680479]
[1673279835600,2.4433631,17304.0,17303.0,6.85680479]
[1673279835853,1.300302,17304.0,17303.0,6.85680479]
[1673279837111,1.164302,17304.0,17303.0,6.85680479]
[1673279837363,1.300302,17304.0,17303.0,6.85780479]
[1673279837854,1.300302,17304.0,17303.0,7.32999479]
[1673279838611,1.164302,17304.0,17303.0,7.32999479]
[1673279838858,1.590802,17304.0,17303.0,7.32999479]
[1673279839115,1.593302,17304.0,17303.0,7.32999479]
[1673279840133,1.593302,17304.0,17303.0,7.21979479]
[1673279840401,2.171203,17304.0,17303.0,7.21979479]
[1673279840656,2.171203,17304.0,17303.0,6.85780479]
[1673279840883,2.789803,17304.0,17303.0,6.85780479]
[1673279841148,3.151793,17304.0,17303.0,6.85780479]
[1673279841398,3.7512927,17304.0,17303.0,6.85780479]
[1673279841695,4.00987052,17304.0,17303.0,6.85780479]
[1673279842167,4.18225592,17304.0,17303.0,6.85780479]
[1673279842433,4.17838486,17304.0,17303.0,5.82325579]
[1673279842698,4.17838486,17304.0,17303.0,5.09046779]
[1673279843019,4.17838486,17304.0,17303.0,4.13075879]
[1673279843202,4.17846054,17304.0,17303.0,4.13075879]
[1673279843452,4.17846054,17304.0,17303.0,3.32752679]
[1673279843453,4.34993014,17304.0,17303.0,3.32752679]
[1673279843710,4.02978431,17304.0,17303.0,1.58594321]
[1673279843963,4.02978431,17304.0,17303.0,0.84607621]
[1673279844236,4.43675995,17304.0,17303.0,0.15184421]
[1673279844486,4.6956152,17304.0,17303.0,0.03596175]
[1673279844720,1.0101,17303.0,17302.0,0.00127673]
[1673279844977,3.77211775,17303.0,17302.0,0.00127673]
[1673279845221,3.83002478,17303.0,17302.0,0.00127673]
[1673279845964,4.54295878,17303.0,17302.0,0.00127673]
[1673279846219,4.40795878,17303.0,17302.0,0.00127673]
[1673279846471,4.54295878,17303.0,17302.0,0.00127673]
[1673279847213,4.11173058,17303.0,17302.0,0.00127673]
[1673279847460,4.11173058,17303.0,17302.0,7.3e-07]
[1673279847461,4.54268313,17303.0,17302.0,7.3e-07]
[1673279847712,4.54268313,17303.0,17299.0,0.00803715]
[1673279847979,0.4,17300.0,17299.0,0.00803715]
[1673279848220,2.649134,17300.0,17299.0,0.00803715]
[1673279848976,2.249134,17300.0,17299.0,0.00803715]
[1673279849737,2.257134,17300.0,17299.0,0.00803715]
[1673279853511,2.42951761,17300.0,17299.0,0.00803715]
[1673279853764,2.85161614,17300.0,17299.0,0.00803715]
[1673279855290,2.67923253,17300.0,17299.0,0.00803715]
[1673279855552,2.85161614,17300.0,17299.0,0.00803715]
[1673279856575,1.957134,17300.0,17299.0,0.00803715]
[1673279857080,1.742102,17300.0,17299.0,0.00803715]
[1673279857826,2.27647561,17300.0,17299.0,0.00803715]
[1673279858150,1.91448561,17300.0,17299.0,0.00803715]
[1673279858347,2.27647561,17300.0,17299.0,0.00803715]
[1673279858585,3.24120496,17300.0,17299.0,0.00803715]
[1673279858845,2.87921496,17300.0,17299.0,0.00803715]
[1673279859129,3.24120496,17300.0,17299.0,0.00303715]
[1673279859396,3.41358857,17300.0,17299.0,0.00303715]
[1673279859926,3.24168714,17300.0,17299.0,0.00303715]
[1673279860442,2.94168714,17300.0,17299.0,0.00303715]
[1673279861496,2.95018714,17300.0,17299.0,0.00303715]
[1673279861752,3.42237997,17300.0,17299.0,0.00303715]
[1673279862515,3.5944657,17300.0,17299.0,0.00303715]
[1673279863822,3.24969848,17300.0,17299.0,0.00303715]
[1673279864589,3.42884593,17300.0,17299.0,0.00303715]
[1673279865610,4.2257286,17300.0,17299.0,0.00303715]
[1673279866147,4.2177286,17300.0,17299.0,0.00303715]
[1673279866394,3.89486123,17300.0,17299.0,0.00303715]
[1673279866648,3.75986123,17300.0,17299.0,0.00303715]
[1673279866905,4.47816924,17300.0,17299.0,0.00273344]
[1673279867206,4.22247545,17300.0,17299.0,0.00273344]
[1673279867667,3.75986123,17300.0,17299.0,0.00273344]
[1673279868502,4.34316924,17300.0,17299.0,0.00273344]
[1673279868754,4.47916924,17300.0,17299.0,0.00273344]
[1673279869256,3.89586123,17300.0,17299.0,0.00273344]
[1673279869513,4.80678346,17300.0,17299.0,0.00273344]
[1673279869787,5.13688918,17300.0,17299.0,0.00273344]
[1673279870303,5.00088918,17300.0,17299.0,0.00273344]
[1673279870559,4.67078346,17300.0,17299.0,0.00273344]
[1673279870843,4.80678346,17300.0,17299.0,0.00273344]
[1673279871115,3.57769112,17300.0,17299.0,0.00273344]
[1673279871671,3.2500769,17300.0,17299.0,0.00273344]
[1673279872440,3.94764637,17300.0,17297.0,0.00889372]
[1673279872696,1.63922106,17298.0,17297.0,0.00889372]
[1673279872952,3.56208406,17298.0,17297.0,0.00889372]
[1673279873215,2.532963,17298.0,17297.0,0.00889372]
[1673279873463,1.99275653,17298.0,17297.0,0.00889372]
[1673279873829,2.83625232,17298.0,17297.0,0.00889372]
[1673279873977,2.89660763,17298.0,17297.0,0.00889372]
[1673279874228,2.01432564,17298.0,17297.0,0.00889372]
[1673279874489,2.37631564,17298.0,17297.0,0.00889372]
[1673279874738,2.67631564,17298.0,17297.0,0.00889372]
[1673279875007,2.68481564,17298.0,17297.0,0.00889372]
[1673279875264,1.85006217,17298.0,17297.0,0.00889372]
[1673279876023,2.02282831,17298.0,17297.0,0.00889372]
[1673279876280,1.67732351,17298.0,17297.0,0.00889372]
[1673279876531,2.15006217,17298.0,17297.0,0.00889372]
[1673279876775,2.39553335,17298.0,17297.0,0.00889372]
[1673279877021,2.43229682,17298.0,17297.0,0.00889372]
[1673279877274,2.93028682,17298.0,17297.0,0.00989372]
[1673279877523,2.58478202,17298.0,17297.0,0.00989372]
[1673279878290,0.90953494,17297.0,17293.0,0.59664247]
[1673279878548,0.53817653,17296.0,17293.0,0.70684247]
[1673279878795,0.53817653,17296.0,17294.0,0.4]
[1673279879048,0.7321519,17296.0,17295.0,0.36199]
[1673279879317,0.90501266,17296.0,17294.0,0.4]
[1673279879582,0.17305506,17295.0,17294.0,0.4]
[1673279879828,0.17305506,17295.0,17294.0,0.51069925]
[1673279880082,0.17305506,17295.0,17294.0,0.76199]
[1673279880556,1.38536866,17296.0,17294.0,0.76199]
[1673279880557,1.2127022,17296.0,17294.0,0.76199]
[1673279880800,1.2127022,17296.0,17295.0,0.36199]
[1673279881057,1.2127022,17296.0,17294.0,0.4]
[1673279881356,0.47305317,17295.0,17294.0,0.4]
[1673279881566,0.52905317,17295.0,17294.0,0.402]
[1673279881813,0.47305317,17295.0,17294.0,0.76199]
[1673279882063,0.47305317,17295.0,17294.0,0.001]
[1673279882064,1.95427466,17295.0,17294.0,0.001]
[1673279882325,1.95427466,17295.0,17292.0,1.0776]
[1673279882326,2.12714428,17295.0,17292.0,1.0776]
[1673279882597,0.43289546,17294.0,17293.0,0.4]
[1673279882858,1.59748832,17294.0,17291.0,0.79411232]
[1673279883099,0.36531577,17293.0,17291.0,0.79411232]
[1673279883364,0.62505305,17293.0,17291.0,0.79411232]
[1673279883622,0.55973728,17293.0,17291.0,0.79411232]
[1673279883897,0.3,17293.0,17292.0,0.36199]
[1673279884375,0.3,17293.0,17292.0,0.76199]
[1673279884878,0.57273728,17293.0,17292.0,0.412]
[1673279885121,0.57273728,17293.0,17292.0,0.012]
[1673279885368,0.313,17293.0,17292.0,0.012]
[1673279885869,0.313,17293.0,17292.0,0.37399]
[1673279886649,0.833441,17293.0,17292.0,0.37399]
[1673279887123,0.833441,17293.0,17292.0,0.012]
[1673279887626,0.833441,17293.0,17292.0,0.002]
[1673279887876,1.9593408,17293.0,17292.0,0.002]
[1673279888129,2.13176428,17293.0,17292.0,0.002]
[1673279888376,3.12280962,17293.0,17292.0,0.002]
[1673279888628,2.90619434,17293.0,17292.0,0.002]
[1673279889382,2.96654965,17293.0,17292.0,0.002]
[1673279890897,3.39928194,17293.0,17292.0,0.002]
[1673279891149,2.96654965,17293.0,17292.0,0.002]
[1673279891397,3.36708062,17293.0,17292.0,0.002]
[1673279891645,3.72907062,17293.0,17292.0,0.002]
[1673279891887,3.79968064,17293.0,17292.0,0.002]
[1673279892402,1.0641827,17292.0,17291.0,0.00792057]
[1673279892651,4.01034088,17292.0,17291.0,0.00792057]
[1673279892915,4.18338046,17292.0,17291.0,0.00792057]
[1673279893408,3.83729998,17292.0,17291.0,0.00792057]
[1673279893964,3.78269004,17292.0,17291.0,0.00892057]
[1673279894207,3.42070004,17292.0,17291.0,0.00892057]
[1673279894426,3.72860975,17292.0,17291.0,0.00892057]
[1673279894676,3.71260975,17292.0,17291.0,0.00792057]
[1673279894940,3.84560975,17292.0,17291.0,0.00792057]
[1673279895180,3.71260975,17292.0,17291.0,0.00792057]
[1673279895913,3.84560975,17292.0,17291.0,0.00792057]
[1673279896161,4.31621409,17292.0,17291.0,0.00792057]
[1673279896911,4.37323139,17292.0,17291.0,0.00792057]
[1673279897164,5.17868007,17292.0,17291.0,0.00792057]
[1673279897410,4.71933661,17292.0,17291.0,0.00792057]
[1673279897654,5.75786838,17292.0,17291.0,0.00792057]
[1673279898392,5.64676838,17292.0,17291.0,0.00792057]
[1673279898892,5.18759003,17292.0,17291.0,0.00792057]
[1673279899143,2.90639932,17292.0,17291.0,0.00792057]
[1673279899393,2.89933043,17292.0,17291.0,0.00712852]
[1673279899650,3.31027678,17292.0,17291.0,5.2e-07]
[1673279899916,3.95297349,17292.0,17291.0,5.2e-07]
[1673279900180,4.01828926,17292.0,17291.0,5.2e-07]
[1673279900434,4.91096051,17292.0,17291.0,5.2e-07]
[1673279900922,4.38866024,17292.0,17291.0,0.01100052]
[1673279901168,0.50492157,17291.0,17289.0,0.00433809]
[1673279901414,3.65284907,17290.0,17289.0,0.00433809]
[1673279901661,4.22347626,17290.0,17289.0,0.00433809]
[1673279902398,4.38374179,17290.0,17289.0,0.01433809]
[1673279902655,5.10434647,17290.0,17289.0,0.01433809]
[1673279902915,4.64572633,17290.0,17289.0,0.01433809]
[1673279903439,4.64572633,17290.0,17289.0,9e-08]
[1673279903693,4.64572633,17290.0,17288.0,5.01384826]
[1673279903694,0.09982079,17289.0,17288.0,5.01384826]
[1673279903937,2.69816283,17289.0,17288.0,5.01384826]
[1673279904186,3.84439083,17289.0,17288.0,5.01384826]
[1673279904431,3.32658444,17289.0,17288.0,5.01384826]
[1673279904684,2.84039908,17289.0,17288.0,5.01384826]
[1673279904929,2.97179067,17289.0,17288.0,5.25152615]
[1673279905178,2.4890165,17289.0,17288.0,5.01384826]
[1673279905441,2.73264083,17289.0,17288.0,5.02284826]
[1673279905702,2.62031257,17289.0,17288.0,5.02284826]
[1673279905952,3.33477747,17289.0,17288.0,5.02284826]
[1673279906201,3.47057857,17289.0,17288.0,5.02284826]
[1673279906442,3.33477747,17289.0,17288.0,5.02284826]
[1673279906688,2.6728205,17289.0,17288.0,5.02284826]
[1673279907662,2.50012543,17289.0,17288.0,5.02284826]
[1673279908157,2.9728205,17289.0,17288.0,5.02284826]
[1673279908398,3.20366076,17289.0,17288.0,5.02284826]
[1673279908646,2.80012711,17289.0,17288.0,5.02284826]
[1673279909382,2.5413265,17289.0,17288.0,5.02284826]
[1673279909626,3.28940073,17289.0,17288.0,5.02284826]
[1673279909874,2.80012711,17289.0,17288.0,5.02284826]
[1673279910120,2.3263605,17289.0,17288.0,5.02284826]
[1673279910373,2.48881879,17289.0,17288.0,5.02284826]
[1673279910856,2.27385279,17289.0,17288.0,5.02284826]
[1673279911100,2.7476194,17289.0,17288.0,5.02284826]
[1673279911347,3.23689302,17289.0,17288.0,5.02284826]
[1673279911672,3.40958641,17289.0,17288.0,5.02284826]
[1673279911937,3.58202725,17289.0,17288.0,5.02284826]
[1673279912176,2.74756955,17289.0,17288.0,5.02284826]
[1673279912681,3.84107037,17289.0,17288.0,5.02284826]
[1673279912942,3.40958641,17289.0,17288.0,5.02284826]
[1673279913226,2.92031279,17289.0,17288.0,5.02284826]
[1673279913471,2.9728205,17289.0,17288.0,5.02284826]
[1673279913730,3.46209412,17289.0,17288.0,5.02284826]
[1673279914765,3.63477747,17289.0,17288.0,5.02284826]
[1673279916381,4.06140842,17289.0,17288.0,5.02284826]
[1673279916644,3.71622434,17289.0,17288.0,5.02284826]
[1673279917657,3.28474038,17289.0,17288.0,5.02284826]
[1673279918423,2.80024974,17289.0,17288.0,5.02284826]
[1673279918670,3.14536464,17289.0,17288.0,5.02284826]
[1673279918941,2.97278404,17289.0,17288.0,5.02284826]
[1673279919455,2.84536464,17289.0,17288.0,5.02284826]
[1673279919703,2.57807087,17289.0,17288.0,5.02284826]
[1673279919972,2.40542226,17289.0,17288.0,5.02284826]
[1673279920440,2.62038826,17289.0,17288.0,5.02284826]
[1673279920689,2.57775893,17289.0,17288.0,5.02284826]
[1673279920935,3.09272493,17289.0,17288.0,5.02284826]
[1673279921186,2.87775893,17289.0,17288.0,5.02284826]
[1673279921455,3.23688365,17289.0,17288.0,5.02284826]
[1673279921707,2.85797743,17289.0,17288.0,5.02284826]
[1673279922439,3.28964132,17289.0,17288.0,5.02284826]
[1673279922928,3.2896405,17289.0,17288.0,5.02284826]
[1673279923197,2.85797743,17289.0,17288.0,5.02284826]
[1673279924304,3.37578382,17289.0,17288.0,5.02284826]
[1673279924505,2.85797743,17289.0,17288.0,5.02284826]
[1673279924991,3.7765154,17289.0,17288.0,5.02284826]
[1673279925734,3.7765154,17289.0,17288.0,4.43651626]
[1673279925984,3.31822004,17289.0,17288.0,4.14335026]
[1673279926726,2.91748846,17289.0,17288.0,4.14335026]
[1673279926980,3.37643828,17289.0,17288.0,4.14335026]
[1673279927458,3.37643828,17289.0,17288.0,3.94335026]
[1673279927698,2.85797743,17289.0,17288.0,3.94335026]
[1673279929224,3.44138018,17289.0,17288.0,3.94335026]
[1673279929456,3.32327692,17289.0,17288.0,3.94335026]
[1673279929702,3.96622141,17289.0,17288.0,3.94335026]
[1673279930200,3.38281866,17289.0,17288.0,3.94335026]
[1673279930700,3.96622141,17289.0,17288.0,3.54901524]
[1673279930944,3.90667967,17289.0,17288.0,3.22118524]
[1673279931188,3.90667967,17289.0,17288.0,2.57203424]
[1673279931684,4.51677967,17289.0,17288.0,1.88799624]
[1673279931929,4.62727967,17289.0,17288.0,1.58467624]
[1673279932203,4.62727967,17289.0,17288.0,1.28135624]
[1673279933211,5.06315264,17289.0,17288.0,0.18610126]
[1673279933453,0.52353694,17288.0,17287.0,0.01191613]
[1673279933711,3.44855148,17288.0,17287.0,0.01191613]
[1673279933967,3.71602519,17288.0,17287.0,0.01191613]
[1673279934484,4.07833786,17288.0,17287.0,0.01191613]
[1673279934745,3.62982519,17288.0,17287.0,0.01191613]
[1673279934998,4.3254394,17288.0,17287.0,0.01191613]
[1673279935241,3.74092519,17288.0,17287.0,0.01191613]
[1673279936476,2.10905487,17288.0,17287.0,0.24959402]
[1673279936739,2.10905487,17288.0,17287.0,0.01191613]
[1673279936740,2.04404504,17288.0,17287.0,0.01191613]
[1673279937230,0.462748,17288.0,17287.0,1.32721923]
[1673279937485,0.56912535,17288.0,17287.0,1.20104134]
[1673279937754,0.51980104,17288.0,17287.0,1.20004134]
[1673279937993,0.52980104,17288.0,17287.0,1.10154134]
[1673279938266,0.98254904,17288.0,17287.0,0.37433313]
[1673279938499,1.45529704,17288.0,17287.0,0.02391613]
[1673279938744,1.44529704,17288.0,17287.0,0.01191613]
[1673279938990,1.75529704,17288.0,17287.0,0.02391613]
[1673279940503,1.75550938,17288.0,17287.0,0.02391613]
[1673279940779,1.235496,17288.0,17287.0,0.02391613]
[1673279942491,1.75548034,17288.0,17287.0,0.02391613]
[1673279942995,1.235496,17288.0,17287.0,0.02391613]
[1673279943234,1.243996,17288.0,17287.0,0.02391613]
[1673279943480,2.01209111,17288.0,17287.0,0.02391613]
[1673279943731,2.44715124,17288.0,17287.0,0.02391613]
[1673279944474,3.13206877,17288.0,17287.0,0.02391613]
[1673279944955,3.63182405,17288.0,17287.0,0.02391613]
[1673279945192,3.18619065,17288.0,17287.0,0.02391613]
[1673279946444,2.60137978,17288.0,17287.0,0.02391613]
[1673279946694,3.18635609,17288.0,17287.0,0.02391613]
[1673279947190,3.76242048,17288.0,17287.0,0.02391613]
[1673279947440,3.29297139,17288.0,17287.0,0.02391613]
[1673279947684,3.29297139,17288.0,17287.0,0.0202843]
[1673279947685,3.23193035,17288.0,17287.0,0.0202843]
[1673279947925,3.39275029,17288.0,17287.0,0.0082843]
[1673279948177,3.39275029,17288.0,17287.0,0.0092843]
[1673279948178,3.52775029,17288.0,17287.0,0.0092843]
[1673279948441,4.25990695,17288.0,17287.0,3e-07]
[1673279948685,4.25990695,17288.0,17286.0,0.01240226]
[1673279948686,0.4,17287.0,17286.0,0.01240226]
[1673279948929,3.34608115,17287.0,17286.0,0.01240226]
[1673279949176,3.40020303,17287.0,17286.0,0.01240226]
[1673279949763,3.49989832,17287.0,17286.0,0.01240226]
[1673279950011,3.63489832,17287.0,17286.0,0.01340226]
[1673279950822,3.88294431,17287.0,17286.0,0.01340226]
[1673279951063,3.82322437,17287.0,17286.0,0.01340226]
[1673279951322,3.88294431,17287.0,17286.0,0.01340226]
[1673279951580,0.4,17285.0,17283.0,0.01268429]
[1673279951824,3.05659644,17284.0,17283.0,0.01268429]
[1673279952078,3.36181905,17284.0,17283.0,0.01268429]
[1673279952325,3.45452504,17284.0,17283.0,0.01268429]
[1673279953091,3.53288035,17284.0,17283.0,0.01468429]
[1673279953355,3.59260029,17284.0,17283.0,0.01468429]
[1673279953591,3.42288035,17284.0,17283.0,0.01468429]
[1673279955668,4.00708032,17284.0,17283.0,0.01321587]
[1673279955887,3.48260029,17284.0,17283.0,0.01321587]
[1673279956140,3.42288035,17284.0,17283.0,0.01321587]
[1673279956423,4.00703575,17284.0,17283.0,0.01321587]
[1673279956970,3.48260029,17284.0,17283.0,0.01321587]
[1673279957191,3.42288035,17284.0,17283.0,0.01321587]
[1673279957438,4.00705106,17284.0,17283.0,0.01321587]
[1673279959214,4.00705106,17284.0,17282.0,0.01305352]
[1673279959215,3.48260029,17284.0,17282.0,0.01305352]
[1673279959485,2.03693903,17283.0,17282.0,0.01305352]
[1673279959716,3.77547103,17283.0,17282.0,0.00305352]
[1673279960473,3.19166107,17283.0,17282.0,0.00305352]
[1673279960969,3.78547103,17283.0,17282.0,0.01005352]
[1673279961215,3.437211,17283.0,17282.0,0.01005352]
[1673279961458,2.87254592,17283.0,17282.0,0.01005352]
[1673279961705,2.87254592,17283.0,17282.0,0.24773141]
[1673279961706,2.06925592,17283.0,17282.0,0.24773141]
[1673279961960,1.55035576,17283.0,17282.0,0.01005352]
[1673279962488,2.32812903,17283.0,17282.0,0.01005352]
[1673279962769,1.80922887,17283.0,17282.0,0.01005352]
[1673279963788,1.54185576,17283.0,17282.0,0.01005352]
[1673279964039,1.42533275,17283.0,17282.0,0.6619527]
[1673279964782,1.25238462,17283.0,17282.0,0.6619527]
[1673279965038,1.59827679,17283.0,17282.0,0.6619527]
[1673279965287,1.8131398,17283.0,17282.0,0.6619527]
[1673279965786,1.90677679,17283.0,17282.0,0.6619527]
[1673279966026,1.73384287,17283.0,17282.0,0.6619527]
[1673279966279,1.73384287,17283.0,17282.0,1.0243697]
[1673279966521,1.73384287,17283.0,17282.0,0.6619527]
[1673279967020,1.90677679,17283.0,17282.0,0.6619527]
[1673279967267,2.16619621,17283.0,17282.0,0.6619527]
[1673279967530,1.90677679,17283.0,17282.0,0.6619527]
[1673279968274,2.13888713,17283.0,17282.0,1.0243697]
[1673279968527,2.13888713,17283.0,17282.0,1.26204759]
[1673279968528,1.65746043,17283.0,17282.0,1.26204759]
[1673279968779,0.01,17283.0,17282.0,1.2463697]
[1673279969281,0.01,17283.0,17282.0,1.3574697]
[1673279970035,0.00971445,17283.0,17282.0,1.3574697]
[1673279970297,0.00971445,17283.0,17282.0,1.2464697]
[1673279971084,0.00942581,17283.0,17282.0,1.2464697]
[1673279971341,0.00942581,17283.0,17282.0,1.41244326]
[1673279972134,0.00914412,17283.0,17282.0,1.41244326]
[1673279973075,0.00886243,17283.0,17282.0,1.41244326]
[1673279974089,0.00858576,17283.0,17282.0,1.41244326]
[1673279974826,0.00858576,17283.0,17282.0,1.81244326]
[1673279975076,0.00858576,17283.0,17282.0,1.6464697]
[1673279978073,0.00842835,17283.0,17282.0,1.6464697]
[1673279979077,0.00827124,17283.0,17282.0,1.6464697]
[1673279979562,0.00827124,17283.0,17282.0,9.1464697]
[1673279979815,0.00827124,17283.0,17282.0,9.72586076]
[1673279981066,0.00819532,17283.0,17282.0,9.72586076]
[1673279981830,0.30741978,17283.0,17282.0,9.72586076]
[1673279982336,0.30734373,17283.0,17282.0,9.72586076]
[1673279983109,0.60726703,17283.0,17282.0,1.5353697]
[1673279983643,0.60726703,17283.0,17282.0,9.0353697]
[1673279984941,0.30726703,17283.0,17282.0,9.0353697]
[1673279985941,0.60726703,17283.0,17282.0,9.0353697]
[1673279986448,0.60726703,17283.0,17282.0,9.61476076]
[1673279986709,0.30726703,17283.0,17282.0,9.61476076]
[1673279986960,0.30726703,17283.0,17282.0,9.50376076]
[1673279987290,0.60726703,17283.0,17282.0,9.50376076]
[1673279987476,0.60726703,17283.0,17282.0,8.9243697]
[1673279988301,0.30726703,17283.0,17282.0,8.9243697]
[1673279989123,0.30695783,17283.0,17282.0,8.9243697]
[1673279989392,0.60695783,17283.0,17282.0,8.9243697]
[1673279989643,1.01197983,17283.0,17282.0,2.00376076]
[1673279989923,1.01197983,17283.0,17282.0,1.4243697]
[1673279990171,1.01167974,17283.0,17282.0,1.4243697]
[1673279990424,0.4,17282.0,17274.0,0.6101]
[1673279990678,0.06531577,17281.0,17280.0,0.111]
[1673279990939,2.22662466,17283.0,17280.0,0.63578]
[1673279991231,0.3,17282.0,17281.0,0.87358]
[1673279991496,1.82127903,17283.0,17281.0,0.87358]
[1673279991759,1.82127903,17283.0,17279.0,0.17236212]
[1673279991760,1.11453263,17282.0,17279.0,0.17236212]
[1673279992010,0.015,17281.0,17280.0,0.55633621]
[1673279992267,0.95221052,17282.0,17280.0,0.63873621]
[1673279992535,0.72853263,17282.0,17281.0,0.1388]
[1673279992812,0.72853263,17282.0,17281.0,0.1108]
[1673279993073,0.74224205,17282.0,17281.0,0.1108]
[1673279993333,0.71424205,17282.0,17281.0,0.17471362]
[1673279993586,0.72824205,17282.0,17281.0,0.17471362]
[1673279994149,0.72794717,17282.0,17281.0,0.17471362]
[1673279994675,0.71394717,17282.0,17281.0,0.17471362]
[1673279994923,0.72894717,17282.0,17281.0,0.17471362]
[1673279995387,0.71394717,17282.0,17281.0,0.17471362]
[1673279995389,0.72794717,17282.0,17281.0,0.20271362]
[1673279995651,0.72794717,17282.0,17281.0,0.56530062]
[1673279996425,0.72794717,17282.0,17281.0,0.501387]
[1673279996956,0.72794717,17282.0,17281.0,0.1388]
[1673279997212,1.02794717,17282.0,17281.0,0.1388]
[1673279997985,1.20090171,17282.0,17281.0,0.1388]
[1673279998263,2.01099171,17282.0,17281.0,0.1388]
[1673279999318,2.34304944,17282.0,17281.0,0.1388]
[1673279999571,2.8484033,17282.0,17281.0,0.13667455]
[1673280000086,2.8484033,17282.0,17281.0,0.028]
[1673280000087,3.06875253,17282.0,17281.0,0.028]
[1673280000574,3.07011952,17282.0,17281.0,0.028]
[1673280000827,3.31597525,17282.0,17278.0,1.07345397]
[1673280001089,3.31597525,17282.0,17281.0,0.023]
[1673280001090,3.74088911,17282.0,17281.0,0.023]
[1673280001363,3.74088911,17282.0,17280.0,0.511]
[1673280001364,3.44178072,17282.0,17280.0,0.511]
[1673280001626,3.05073572,17282.0,17281.0,0.023]
[1673280001873,2.87749975,17282.0,17281.0,0.023]
[1673280002623,2.86349975,17282.0,17280.0,0.534]
[1673280002940,2.87749975,17282.0,17280.0,0.534]
[1673280003873,2.86349975,17282.0,17280.0,0.511]
[1673280004375,2.87849975,17282.0,17281.0,0.026]
[1673280004643,2.86349975,17282.0,17280.0,0.511]
[1673280004882,2.87749975,17282.0,17280.0,0.64175786]
[1673280005125,2.87749975,17282.0,17280.0,0.511]
[1673280005126,2.56349975,17282.0,17280.0,0.511]
[1673280005371,2.57749975,17282.0,17280.0,0.537]
[1673280005614,2.56349975,17282.0,17280.0,0.511]
[1673280005869,2.57749975,17282.0,17280.0,0.537]
[1673280006119,2.40445479,17282.0,17280.0,0.537]
[1673280006355,2.14438483,17282.0,17281.0,0.362587]
[1673280006602,1.60369685,17282.0,17280.0,0.537]
[1673280006864,1.60369685,17282.0,17281.0,0.362587]
[1673280007112,2.27765861,17282.0,17280.0,8.011]
[1673280007357,2.54353351,17282.0,17281.0,0.362587]
[1673280007615,1.46757382,17282.0,17280.0,1.09875277]
[1673280007858,1.26026826,17282.0,17281.0,0.026]
[1673280008122,1.24626826,17282.0,17281.0,0.362587]
[1673280008379,1.08728562,17282.0,17281.0,0.362587]
[1673280008643,1.08728562,17282.0,17280.0,1.24862805]
[1673280008890,1.27426826,17282.0,17281.0,0.026]
[1673280009155,1.10128508,17282.0,17281.0,0.388587]
[1673280009676,1.10128508,17282.0,17281.0,0.5523085]
[1673280009916,1.10128508,17282.0,17281.0,0.1897215]
[1673280010164,0.84102841,17282.0,17281.0,0.1897215]
[1673280010409,0.84102841,17282.0,17281.0,0.5523085]
[1673280010897,0.84074142,17282.0,17281.0,0.5523085]
[1673280011911,0.84046212,17282.0,17281.0,0.5523085]
[1673280012165,1.57370197,17282.0,17281.0,0.388587]
[1673280012419,1.27370197,17282.0,17281.0,0.026]
[1673280012664,1.10038879,17282.0,17281.0,0.388587]
[1673280012902,1.10038879,17282.0,17281.0,0.49353323]
[1673280013677,0.46175682,17282.0,17281.0,0.49353323]
[1673280013917,0.20150015,17282.0,17281.0,0.49353323]
[1673280014409,0.13150015,17282.0,17281.0,0.49353323]
[1673280014649,0.39148662,17282.0,17281.0,0.49353323]
[1673280014900,0.13122995,17282.0,17281.0,0.49353323]
[1673280015149,0.39148662,17282.0,17281.0,0.49353323]
[1673280015649,0.39122207,17282.0,17281.0,0.49353323]
[1673280015894,0.39122207,17282.0,17281.0,0.30353323]
[1673280016136,0.1309654,17282.0,17281.0,0.30353323]
[1673280016381,1.73469163,17283.0,17281.0,0.30353323]
[1673280016382,0.9253137,17283.0,17281.0,0.30353323]
[1673280016637,0.9253137,17283.0,17282.0,0.362587]
[1673280016882,1.27180563,17283.0,17282.0,0.39294032]
[1673280017121,1.27180563,17283.0,17282.0,0.39294132]
[1673280017363,0.9253137,17283.0,17282.0,0.362588]
[1673280017618,1.28580563,17283.0,17281.0,0.043]
[1673280017881,1.27180563,17283.0,17282.0,0.362588]
[1673280018394,0.9253137,17283.0,17282.0,0.362588]
[1673280018651,0.93806045,17283.0,17282.0,0.4418468]
[1673280019157,0.93806045,17283.0,17282.0,0.8418468]
[1673280019656,0.93780358,17283.0,17282.0,0.8418468]
[1673280020146,0.93780358,17283.0,17282.0,0.805588]
[1673280020412,1.28429551,17283.0,17282.0,0.405588]
[1673280020660,1.28429551,17283.0,17282.0,0.043]
[1673280021693,0.93780358,17283.0,17282.0,0.043]
[1673280021945,0.93780358,17283.0,17282.0,0.405588]
[1673280022203,0.93780358,17283.0,17282.0,0.60183793]
[1673280022958,1.28429551,17283.0,17282.0,0.60183793]
[1673280023208,1.28429551,17283.0,17282.0,0.043]
[1673280023475,1.28429551,17283.0,17282.0,0.405588]
[1673280023731,1.51520571,17283.0,17282.0,0.405588]
[1673280024487,1.46871378,17283.0,17282.0,0.405588]
[1673280024730,1.46871378,17283.0,17282.0,0.043]